[Event "10th Iberoamericano-ch 2024"]
[Site "Linares"]
[Date "2024.09.27"]
[Round "5.1"]
[White "Garrido Outon, Alex"]
[Black "Garcia Ramos, Daniel"]
[Result "0-1"]
[ECO "B12"]
[WhiteElo "2448"]
[BlackElo "2415"]
[Annotator "ChessBase"]
[PlyCount "72"]
[EventDate "2024.09.25"]
[EventType "swiss"]
[EventCountry "ESP"]
[SourceTitle "playchess.com"]
[Source "ChessBase"]
[SourceQuality "1"]
[TimeControl "5400+30"]

1. e4 {[%emt 0:00:36]} c6 {[%emt 0:02:24]} 2. d4 {[%emt 0:00:16]} d5 {[%emt 0:00:09]} 3. e5 {[%emt 0:00:05]} Bf5 {[%emt 0:00:21]} 4. h4 {[%emt 0:00:11]} h5 {[%emt 0:00:26]} 5. c4 {[%emt 0:00:08]} e6 {[%emt 0:00:21]} 6. Nc3 {[%emt 0:00:08]} dxc4 {[%emt 0:00:22]} 7. Bxc4 {[%emt 0:00:08]} Nd7 {[%emt 0:00:05]} 8. Bg5 {[%emt 0:00:20]} Qb6 {[%emt 0:06:33]} 9. Nge2 {[%emt 0:02:37]} Be7 {[%emt 0:05:57]} 10. O-O {[%emt 0:04:22]} Bxg5 {[%emt 0:06:24]} 11. hxg5 {[%emt 0:00:01]} Ne7 {[%emt 0:00:45]} 12. Qc1 {[%emt 0:26:36]} O-O-O {[%emt 0:05:08]} 13. Qe3 {[%emt 0:04:13]} Kb8 {[%emt 0:10:59]} 14. Rfd1 {[%emt 0:25:32]} h4 {[%emt 0:08:28]} 15. Ne4 {[%emt 0:01:11]} Nxe5 {[%emt 0:02:35]} 16. Bb3 {[%emt 0:08:22]} Ng4 {[%emt 0:03:51]} 17. Qf4+ {[%emt 0:11:27]} Ka8 {[%emt 0:06:13]} 18. Nd6 {[%emt 0:02:27]} Ng6 {[%emt 0:13:36]} 19. Nc4 {[%emt 0:00:07]} Nxf4 {[%emt 0:02:10]} 20. Nxb6+ {[%emt 0:00:07]} axb6 {[%emt 0:00:04]} 21. Nxf4 {[%emt 0:00:05]} Rd6 {[%emt 0:00:38]} 22. Rac1 {[%emt 0:03:29]} Rhd8 {[%emt 0:01:08]} 23. f3 {[%emt 0:02:59]} Ne3 {[%emt 0:05:22]} 24. Re1 {[%emt 0:00:02]} Rxd4 {[%emt 0:00:15]} 25. Nxe6 {[%emt 0:01:06]} fxe6 {[%emt 0:06:42]} 26. Rxe3 {[%emt 0:00:06]} Rd2 {[%emt 0:01:21]} 27. Rc4 {[%emt 0:03:41]} h3 {[%emt 0:01:49]} 28. gxh3 {[%emt 0:00:49]} Rxb2 {[%emt 0:00:14]} 29. f4 {[%emt 0:02:37]} Rdd2 {[%emt 0:00:36]} 30. Rc1 {[%emt 0:00:45]} Rg2+ {[%emt 0:00:05]} 31. Kf1 {[%emt 0:00:03]} Rh2 {[%emt 0:00:12]} 32. Kg1 {[%emt 0:00:19]} Rbg2+ {[%emt 0:05:42]} 33. Kf1 {[%emt 0:00:01]} Rd2 {[%emt 0:00:05]} 34. Ke1 {[%emt 0:01:31]} b5 {[%emt 0:01:56]} 35. h4 {[%emt 0:01:02]} Rb2 {[%emt 0:00:17]} 36. Rf3 {[%emt 0:00:10]} Be4 {[%emt 0:00:50]} 0-1

[Event "10th Iberoamericano-ch 2024"]
[Site "Linares"]
[Date "2024.09.27"]
[Round "5.2"]
[White "Quesada Perez, Luis Ernesto"]
[Black "Rodriguez Vila, Andres"]
[Result "1-0"]
[ECO "A89"]
[WhiteElo "2578"]
[BlackElo "2417"]
[Annotator "ChessBase"]
[PlyCount "127"]
[EventDate "2024.09.25"]
[EventType "swiss"]
[EventCountry "ESP"]
[SourceTitle "playchess.com"]
[Source "ChessBase"]
[SourceQuality "1"]
[TimeControl "5400+30"]

1. d4 {[%emt 0:00:06]} f5 {[%emt 0:01:13]} 2. c4 {[%emt 0:00:09]} Nf6 {[%emt 0:00:04]} 3. g3 {[%emt 0:00:11]} d6 {[%emt 0:00:05]} 4. Nf3 {[%emt 0:00:07]} g6 {[%emt 0:00:03]} 5. Bg2 {[%emt 0:00:08]} Bg7 {[%emt 0:00:03]} 6. O-O {[%emt 0:00:14]} O-O {[%emt 0:00:02]} 7. Nc3 {[%emt 0:00:08]} Nc6 {[%emt 0:00:07]} 8. d5 {[%emt 0:01:27]} Ne5 {[%emt 0:01:01]} 9. Qb3 {[%emt 0:00:14]} h6 {[%emt 0:02:22]} 10. Nd4 {[%emt 0:06:21]} g5 {[%emt 0:00:36]} 11. Qc2 {[%emt 0:19:39]} Nh5 {[%emt 0:07:25]} 12. e3 {[%emt 0:08:56]} f4 {[%emt 0:11:30]} 13. exf4 {[%emt 0:00:42]} gxf4 {[%emt 0:00:13]} 14. Qe4 {[%emt 0:08:39]} Kh8 {[%emt 0:12:39]} 15. Nce2 {[%emt 0:08:53]} fxg3 {[%emt 0:04:20]} 16. hxg3 {[%emt 0:00:09]} Qe8 {[%emt 0:01:02]} 17. Qh4 {[%emt 0:05:32]} Qg6 {[%emt 0:05:13]} 18. b3 {[%emt 0:09:20]} Bg4 {[%emt 0:03:15]} 19. Be3 {[%emt 0:00:35]} Nf3+ {[%emt 0:13:08]} 20. Bxf3 {[%emt 0:09:20]} Bxf3 {[%emt 0:00:34]} 21. Rae1 {[%emt 0:01:32]} Bf6 {[%emt 0:07:52]} 22. Qh2 {[%emt 0:01:04]} Bg4 {[%emt 0:00:14]} 23. f3 {[%emt 0:00:05]} Bd7 {[%emt 0:00:09]} 24. Kf2 {[%emt 0:00:37]} Bg7 {[%emt 0:01:49]} 25. Rh1 {[%emt 0:00:27]} Bg4 {[%emt 0:00:56]} 26. Nf4 {[%emt 0:01:06]} Nxf4 {[%emt 0:01:48]} 27. gxf4 {[%emt 0:00:18]} Bf5 {[%emt 0:00:39]} 28. Ne2 {[%emt 0:04:28]} c5 {[%emt 0:05:16]} 29. dxc6 {[%emt 0:01:01]} bxc6 {[%emt 0:00:01]} 30. Reg1 {[%emt 0:01:18]} Qh7 {[%emt 0:00:31]} 31. Bd4 {[%emt 0:00:55]} e5 {[%emt 0:00:45]} 32. Rxg7 {[%emt 0:01:41]} Qxg7 {[%emt 0:00:08]} 33. fxe5 {[%emt 0:00:07]} c5 {[%emt 0:01:05]} 34. Bc3 {[%emt 0:01:42]} Bg4 {[%emt 0:04:06]} 35. Nf4 {[%emt 0:01:11]} Kh7 {[%emt 0:14:08]} 36. Rg1 {[%emt 0:01:22]} dxe5 {[%emt 0:00:40]} 37. Rxg4 {[%emt 0:00:06]} Qf6 {[%emt 0:01:20]} 38. Qh5 {[%emt 0:03:10]} Rae8 {[%emt 0:00:07]} 39. Rh4 {[%emt 0:02:51]} Qd6 {[%emt 0:01:31]} 40. Nd5 {[%emt 0:00:49]} Qg6 {[%emt 0:00:58]} 41. Bd2 {[%emt 0:01:32]} Qxh5 {[%emt 0:00:39]} 42. Rxh5 {[%emt 0:00:10]} Re6 {[%emt 0:00:31]} 43. Be3 {[%emt 0:00:05]} e4 {[%emt 0:01:07]} 44. f4 {[%emt 0:00:18]} Ra6 {[%emt 0:00:13]} 45. Nc3 {[%emt 0:00:08]} Rd8 {[%emt 0:00:52]} 46. f5 {[%emt 0:01:14]} Rd3 {[%emt 0:00:15]} 47. Nxe4 {[%emt 0:00:14]} Rxa2+ {[%emt 0:00:17]} 48. Kf3 {[%emt 0:00:05]} Rxb3 {[%emt 0:00:44]} 49. Rxh6+ {[%emt 0:00:32]} Kg8 {[%emt 0:00:11]} 50. Kf4 {[%emt 0:00:37]} Rc2 {[%emt 0:00:06]} 51. Rg6+ {[%emt 0:00:23]} Kf7 {[%emt 0:00:29]} 52. Ng5+ {[%emt 0:01:55]} Ke8 {[%emt 0:00:09]} 53. f6 {[%emt 0:00:34]} Rxc4+ {[%emt 0:00:06]} 54. Kf3 {[%emt 0:00:06]} Rb6 {[%emt 0:01:23]} 55. Rg8+ {[%emt 0:00:56]} Kd7 {[%emt 0:00:03]} 56. f7 {[%emt 0:00:32]} Rf6+ {[%emt 0:00:31]} 57. Ke2 {[%emt 0:00:05]} a5 {[%emt 0:00:40]} 58. f8=Q {[%emt 0:00:13]} Rxf8 {[%emt 0:00:02]} 59. Rxf8 {[%emt 0:00:09]} a4 {[%emt 0:00:01]} 60. Kd3 {[%emt 0:01:45]} Rg4 {[%emt 0:00:19]} 61. Ne4 {[%emt 0:00:24]} c4+ {[%emt 0:00:21]} 62. Kd4 {[%emt 0:00:05]} c3 {[%emt 0:01:21]} 63. Ra8 {[%emt 0:00:08]} c2 {[%emt 0:00:10]} 64. Rxa4 {[%emt 0:00:10]} 1-0

[Event "10th Iberoamericano-ch 2024"]
[Site "Linares"]
[Date "2024.09.27"]
[Round "5.3"]
[White "Leiva, Gianmarco"]
[Black "Pichot, Alan"]
[Result "0-1"]
[ECO "C50"]
[WhiteElo "2389"]
[BlackElo "2628"]
[Annotator "ChessBase"]
[PlyCount "87"]
[EventDate "2024.09.25"]
[EventType "swiss"]
[EventCountry "ESP"]
[SourceTitle "playchess.com"]
[Source "ChessBase"]
[SourceQuality "1"]
[TimeControl "5400+30"]

1. e4 {[%emt 0:14:50]} e5 {[%emt 0:00:08]} 2. Nf3 {[%emt 0:00:05]} Nc6 {[%emt 0:00:06]} 3. Bc4 {[%emt 0:00:04]} Nf6 {[%emt 0:00:15]} 4. d3 {[%emt 0:00:02]} Bc5 {[%emt 0:00:16]} 5. a4 d6 {[%emt 0:01:30]} 6. a5 {[%emt 0:05:19]} h6 {[%emt 0:02:20]} 7. O-O {[%emt 0:08:05]} a6 {[%emt 0:01:26]} 8. c3 {[%emt 0:02:01]} O-O {[%emt 0:02:03]} 9. h3 {[%emt 0:00:48]} Ne7 {[%emt 0:08:19]} 10. d4 {[%emt 0:22:36]} Ba7 {[%emt 0:03:11]} 11. Bd3 {[%emt 0:02:28]} Ng6 {[%emt 0:03:58]} 12. Re1 {[%emt 0:00:07]} Re8 {[%emt 0:05:32]} 13. Nbd2 {[%emt 0:00:29]} Nf4 {[%emt 0:08:05]} 14. Bf1 {[%emt 0:01:46]} Nh7 {[%emt 0:03:30]} 15. Nc4 {[%emt 0:01:51]} Qf6 {[%emt 0:00:38]} 16. Be3 {[%emt 0:01:22]} exd4 {[%emt 0:07:41]} 17. Bxf4 {[%emt 0:26:13]} Qxf4 {[%emt 0:00:30]} 18. g3 {[%emt 0:00:07]} Qf6 {[%emt 0:00:24]} 19. cxd4 {[%emt 0:00:04]} Ng5 {[%emt 0:06:51]} 20. Nxg5 {[%emt 0:02:46]} hxg5 {[%emt 0:00:12]} 21. e5 {[%emt 0:02:06]} dxe5 {[%emt 0:00:08]} 22. Nxe5 {[%emt 0:00:05]} Be6 {[%emt 0:01:32]} 23. Ra3 {[%emt 0:00:32]} Rad8 {[%emt 0:04:46]} 24. Rd3 {[%emt 0:00:20]} c6 {[%emt 0:12:59]} 25. Rd2 {[%emt 0:03:22]} Rd6 {[%emt 0:01:16]} 26. Re3 {[%emt 0:01:32]} Qd8 {[%emt 0:05:15]} 27. Nf3 {[%emt 0:00:13]} Qxa5 {[%emt 0:01:41]} 28. Bc4 {[%emt 0:02:12]} Qd8 {[%emt 0:06:03]} 29. Bxe6 {[%emt 0:00:03]} Rexe6 {[%emt 0:00:14]} 30. Rxe6 {[%emt 0:00:04]} Rxe6 {[%emt 0:01:04]} 31. d5 {[%emt 0:00:04]} Rd6 {[%emt 0:00:21]} 32. dxc6 {[%emt 0:00:05]} Rxd2 {[%emt 0:00:05]} 33. Qxd2 {[%emt 0:00:03]} Qxd2 {[%emt 0:00:08]} 34. Nxd2 {[%emt 0:00:06]} bxc6 {[%emt 0:00:04]} 35. Kf1 {[%emt 0:03:05]} f6 {[%emt 0:02:28]} 36. Ke2 {[%emt 0:01:16]} Kf7 {[%emt 0:00:06]} 37. Ne4 {[%emt 0:00:21]} Ke6 {[%emt 0:00:38]} 38. Kd3 {[%emt 0:00:40]} Kd5 {[%emt 0:01:24]} 39. f3 {[%emt 0:00:33]} Bb8 {[%emt 0:01:20]} 40. Nc3+ {[%emt 0:01:13]} Kc5 {[%emt 0:00:56]} 41. Ne4+ {[%emt 0:00:25]} Kb4 {[%emt 0:00:12]} 42. h4 {[%emt 0:01:09]} Kb3 {[%emt 0:03:53]} 43. hxg5 {[%emt 0:00:41]} fxg5 {[%emt 0:00:06]} 44. Kd4 0-1

[Event "10th Iberoamericano-ch 2024"]
[Site "Linares"]
[Date "2024.09.27"]
[Round "5.4"]
[White "Iturrizaga Bonelli, Eduardo"]
[Black "Horcajuelo Rocamora, Martin"]
[Result "1-0"]
[ECO "D37"]
[WhiteElo "2577"]
[BlackElo "2394"]
[Annotator "ChessBase"]
[PlyCount "91"]
[EventDate "2024.09.25"]
[EventType "swiss"]
[EventCountry "ESP"]
[SourceTitle "playchess.com"]
[Source "ChessBase"]
[SourceQuality "1"]
[TimeControl "5400+30"]

1. c4 {[%emt 0:09:34]} e6 {[%emt 0:00:20]} 2. Nc3 {[%emt 0:00:51]} d5 {[%emt 0:00:20]} 3. d4 {[%emt 0:00:06]} Be7 {[%emt 0:00:24]} 4. Nf3 {[%emt 0:02:29]} Nf6 {[%emt 0:00:22]} 5. Bf4 {[%emt 0:00:07]} O-O {[%emt 0:00:26]} 6. e3 {[%emt 0:00:05]} c5 {[%emt 0:01:35]} 7. dxc5 {[%emt 0:00:20]} Nc6 {[%emt 0:01:03]} 8. a3 {[%emt 0:01:07]} Bxc5 {[%emt 0:01:58]} 9. Qc2 {[%emt 0:00:06]} Qa5 {[%emt 0:00:45]} 10. Rd1 {[%emt 0:00:07]} Rd8 {[%emt 0:01:47]} 11. Be2 {[%emt 0:05:33]} dxc4 {[%emt 0:17:39]} 12. Rxd8+ {[%emt 0:02:32]} Qxd8 {[%emt 0:00:38]} 13. Bxc4 {[%emt 0:00:19]} h6 {[%emt 0:05:14]} 14. O-O {[%emt 0:01:18]} Qe7 {[%emt 0:09:04]} 15. Rd1 {[%emt 0:09:14]} e5 {[%emt 0:12:38]} 16. Bxh6 {[%emt 0:12:23]} e4 {[%emt 0:15:35]} 17. Bg5 {[%emt 0:00:39]} exf3 {[%emt 0:05:22]} 18. Nd5 {[%emt 0:00:29]} Nxd5 {[%emt 0:03:27]} 19. Rxd5 {[%emt 0:09:43]} Qe6 {[%emt 0:03:33]} 20. Rxc5 {[%emt 0:01:53]} Qg4 {[%emt 0:00:18]} 21. g3 {[%emt 0:00:16]} Be6 {[%emt 0:04:05]} 22. Bf1 {[%emt 0:00:24]} Bd7 {[%emt 0:03:41]} 23. Bf4 {[%emt 0:01:07]} Rc8 {[%emt 0:03:28]} 24. Qd1 {[%emt 0:01:58]} Bf5 {[%emt 0:02:08]} 25. h3 {[%emt 0:02:50]} Qg6 {[%emt 0:00:23]} 26. Qxf3 {[%emt 0:00:13]} Be4 {[%emt 0:00:10]} 27. Qe2 {[%emt 0:05:09]} b6 {[%emt 0:01:28]} 28. Rc3 {[%emt 0:02:53]} Rd8 {[%emt 0:01:09]} 29. Bg2 {[%emt 0:00:26]} Qe6 {[%emt 0:03:37]} 30. Bxe4 {[%emt 0:03:14]} Qxe4 {[%emt 0:00:05]} 31. Qc2 {[%emt 0:00:02]} Qf3 {[%emt 0:00:50]} 32. Rd3 {[%emt 0:01:03]} Rc8 {[%emt 0:00:36]} 33. e4 {[%emt 0:00:43]} Qh5 {[%emt 0:00:56]} 34. Kg2 {[%emt 0:00:40]} Ne7 {[%emt 0:00:24]} 35. Qd2 {[%emt 0:00:30]} Ng6 {[%emt 0:00:16]} 36. Rd5 {[%emt 0:00:56]} Nxf4+ {[%emt 0:00:53]} 37. Qxf4 {[%emt 0:00:05]} Qg6 {[%emt 0:00:12]} 38. Rd7 {[%emt 0:02:10]} Re8 {[%emt 0:00:12]} 39. Rxa7 {[%emt 0:00:56]} Rxe4 {[%emt 0:00:09]} 40. Qf3 {[%emt 0:00:33]} Re1 {[%emt 0:00:10]} 41. Rc7 {[%emt 0:00:14]} Qe6 {[%emt 0:00:37]} 42. Rc6 {[%emt 0:00:22]} Qe8 {[%emt 0:00:36]} 43. Rxb6 {[%emt 0:00:15]} Rb1 {[%emt 0:00:10]} 44. h4 {[%emt 0:01:22]} g6 {[%emt 0:00:10]} 45. Rb7 {[%emt 0:00:10]} Qe6 {[%emt 0:00:37]} 46. b3 {[%emt 0:00:47]} 1-0

[Event "10th Iberoamericano-ch 2024"]
[Site "Linares"]
[Date "2024.09.27"]
[Round "5.5"]
[White "Fier, Alexandr"]
[Black "Ynojosa Aponte, Felix Jose"]
[Result "1/2-1/2"]
[ECO "B30"]
[WhiteElo "2551"]
[BlackElo "2398"]
[Annotator "ChessBase"]
[PlyCount "92"]
[EventDate "2024.09.25"]
[EventType "swiss"]
[EventCountry "ESP"]
[SourceTitle "playchess.com"]
[Source "ChessBase"]
[SourceQuality "1"]
[TimeControl "5400+30"]

1. e4 {[%emt 0:00:04]} c5 {[%emt 0:06:55]} 2. Nf3 {[%emt 0:00:04]} Nc6 {[%emt 0:00:10]} 3. Bb5 {[%emt 0:00:04]} e6 {[%emt 0:00:03]} 4. Bxc6 {[%emt 0:00:04]} bxc6 {[%emt 0:00:02]} 5. d3 {[%emt 0:00:06]} Ne7 {[%emt 0:00:11]} 6. Nbd2 {[%emt 0:00:05]} d6 {[%emt 0:07:21]} 7. e5 {[%emt 0:00:11]} Nf5 {[%emt 0:00:23]} 8. exd6 {[%emt 0:05:06]} Bxd6 {[%emt 0:01:04]} 9. O-O {[%emt 0:00:40]} f6 {[%emt 0:03:06]} 10. b3 {[%emt 0:01:19]} e5 {[%emt 0:04:22]} 11. Ne4 {[%emt 0:03:30]} Be7 {[%emt 0:00:14]} 12. Qe1 {[%emt 0:00:20]} O-O {[%emt 0:15:01]} 13. Ba3 {[%emt 0:03:41]} Nd4 {[%emt 0:01:39]} 14. Nxd4 {[%emt 0:00:05]} cxd4 {[%emt 0:00:01]} 15. Bxe7 {[%emt 0:00:06]} Qxe7 {[%emt 0:00:04]} 16. f4 {[%emt 0:01:00]} Be6 {[%emt 0:03:30]} 17. Qh4 {[%emt 0:02:32]} exf4 {[%emt 0:08:02]} 18. Qxf4 {[%emt 0:00:14]} Bd5 {[%emt 0:01:24]} 19. Ng3 {[%emt 0:00:06]} Qc5 {[%emt 0:08:28]} 20. Qf2 {[%emt 0:00:30]} Bf7 {[%emt 0:06:52]} 21. Nf5 {[%emt 0:00:54]} Rad8 {[%emt 0:02:51]} 22. Rae1 {[%emt 0:00:05]} Bg6 {[%emt 0:01:57]} 23. Ne7+ {[%emt 0:05:19]} Kf7 {[%emt 0:00:06]} 24. Re2 {[%emt 0:05:35]} Bh5 {[%emt 0:00:54]} 25. Re4 {[%emt 0:00:04]} Bg6 {[%emt 0:00:07]} 26. Nf5 {[%emt 0:00:52]} Rd7 {[%emt 0:10:15]} 27. b4 {[%emt 0:06:03]} Qxf5 {[%emt 0:01:42]} 28. Qxf5 {[%emt 0:00:08]} Bxf5 {[%emt 0:00:02]} 29. Rxf5 {[%emt 0:00:05]} Rb8 {[%emt 0:00:14]} 30. a3 {[%emt 0:02:45]} Rb5 {[%emt 0:00:07]} 31. Rff4 {[%emt 0:00:02]} Rbd5 {[%emt 0:02:10]} 32. Rf1 {[%emt 0:00:05]} a5 {[%emt 0:01:20]} 33. Rb1 {[%emt 0:01:25]} Rb5 {[%emt 0:04:32]} 34. Rb3 {[%emt 0:01:56]} a4 {[%emt 0:00:34]} 35. Rb1 {[%emt 0:01:17]} c5 {[%emt 0:00:41]} 36. Kf2 {[%emt 0:00:15]} cxb4 {[%emt 0:01:24]} 37. axb4 {[%emt 0:00:04]} Rc7 {[%emt 0:00:34]} 38. Rb2 {[%emt 0:07:05]} a3 {[%emt 0:00:12]} 39. Ra2 {[%emt 0:00:02]} Rxb4 {[%emt 0:00:05]} 40. Rxa3 {[%emt 0:00:02]} Rxc2+ {[%emt 0:00:04]} 41. Kf3 {[%emt 0:00:25]} Rc7 {[%emt 0:06:27]} 42. g4 {[%emt 0:00:06]} g6 {[%emt 0:01:05]} 43. h4 {[%emt 0:00:05]} h5 {[%emt 0:00:45]} 44. gxh5 {[%emt 0:00:16]} gxh5 {[%emt 0:00:02]} 45. Ra5 {[%emt 0:00:49]} Rc3 {[%emt 0:02:54]} 46. Ra7+ {[%emt 0:00:03]} Kf8 {[%emt 0:00:50]} 1/2-1/2

[Event "10th Iberoamericano-ch 2024"]
[Site "Linares"]
[Date "2024.09.27"]
[Round "5.6"]
[White "Avila Pavas, Santiago"]
[Black "Perea Fruet, Lorenzo"]
[Result "1-0"]
[ECO "C50"]
[WhiteElo "2485"]
[BlackElo "2389"]
[Annotator "ChessBase"]
[PlyCount "75"]
[EventDate "2024.09.25"]
[EventType "swiss"]
[EventCountry "ESP"]
[SourceTitle "playchess.com"]
[Source "ChessBase"]
[SourceQuality "1"]
[TimeControl "5400+30"]

1. e4 {[%emt 0:03:26]} e5 {[%emt 0:00:07]} 2. Nf3 {[%emt 0:00:04]} Nc6 {[%emt 0:00:05]} 3. Bc4 {[%emt 0:00:04]} Nf6 {[%emt 0:00:06]} 4. d3 {[%emt 0:00:03]} Bc5 {[%emt 0:00:10]} 5. Bg5 {[%emt 0:00:06]} h6 {[%emt 0:00:09]} 6. Bh4 {[%emt 0:00:03]} d6 {[%emt 0:00:35]} 7. c3 {[%emt 0:00:19]} a6 {[%emt 0:00:07]} 8. Nbd2 {[%emt 0:02:56]} Ba7 {[%emt 0:00:16]} 9. a4 {[%emt 0:00:12]} g5 {[%emt 0:03:42]} 10. Bg3 {[%emt 0:01:00]} Nh5 {[%emt 0:03:50]} 11. Nxe5 {[%emt 0:06:53]} Nxg3 {[%emt 0:00:46]} 12. Bxf7+ {[%emt 0:00:07]} Kf8 {[%emt 0:01:33]} 13. Ng6+ {[%emt 0:00:07]} Kxf7 {[%emt 0:00:45]} 14. Nxh8+ {[%emt 0:00:09]} Qxh8 {[%emt 0:00:11]} 15. hxg3 {[%emt 0:02:03]} Qf6 {[%emt 0:07:11]} 16. d4 {[%emt 0:04:14]} Kg7 {[%emt 0:03:55]} 17. O-O {[%emt 0:06:07]} Bd7 {[%emt 0:04:26]} 18. Nc4 {[%emt 0:14:00]} Re8 {[%emt 0:05:35]} 19. Qb3 {[%emt 0:07:49]} Bc8 {[%emt 0:05:37]} 20. Rae1 {[%emt 0:06:16]} h5 {[%emt 0:03:37]} 21. f4 {[%emt 0:19:51]} gxf4 {[%emt 0:27:26]} 22. Rxf4 {[%emt 0:00:51]} Qg6 {[%emt 0:01:35]} 23. Ref1 {[%emt 0:13:42]} Nd8 {[%emt 0:01:46]} 24. Ne3 {[%emt 0:07:16]} c5 {[%emt 0:04:20]} 25. Qd5 {[%emt 0:00:04]} cxd4 {[%emt 0:01:10]} 26. cxd4 {[%emt 0:00:01]} Be6 {[%emt 0:04:10]} 27. Qxd6 {[%emt 0:00:05]} Nf7 {[%emt 0:00:17]} 28. Qb4 {[%emt 0:00:17]} Rd8 {[%emt 0:01:55]} 29. e5 {[%emt 0:01:25]} Qd3 {[%emt 0:02:05]} 30. Qe7 {[%emt 0:00:05]} Qxe3+ {[%emt 0:00:49]} 31. Kh2 {[%emt 0:00:17]} Qb3 {[%emt 0:00:59]} 32. Rxf7+ {[%emt 0:00:27]} Bxf7 {[%emt 0:00:02]} 33. Qf6+ {[%emt 0:01:06]} Kh7 {[%emt 0:00:20]} 34. Qxd8 {[%emt 0:00:04]} Qd5 {[%emt 0:00:10]} 35. Qf8 {[%emt 0:01:12]} Bg6 {[%emt 0:00:19]} 36. Qe7+ {[%emt 0:00:15]} Kh6 {[%emt 0:00:07]} 37. Rf8 {[%emt 0:00:06]} Qe4 {[%emt 0:01:20]} 38. Qf6 {[%emt 0:00:51]} 1-0

[Event "10th Iberoamericano-ch 2024"]
[Site "Linares"]
[Date "2024.09.27"]
[Round "5.7"]
[White "Ladron De Guevara Pinto, Paolo"]
[Black "Salinas Herrera, Pablo"]
[Result "1/2-1/2"]
[ECO "C26"]
[WhiteElo "2371"]
[BlackElo "2479"]
[Annotator "ChessBase"]
[PlyCount "95"]
[EventDate "2024.09.25"]
[EventType "swiss"]
[EventCountry "ESP"]
[SourceTitle "playchess.com"]
[Source "ChessBase"]
[SourceQuality "1"]
[TimeControl "5400+30"]

1. e4 {[%emt 0:00:03]} e5 {[%emt 0:01:31]} 2. Nc3 {[%emt 0:00:28]} Nf6 {[%emt 0:00:07]} 3. d4 {[%emt 0:00:05]} exd4 {[%emt 0:02:58]} 4. Qxd4 {[%emt 0:00:17]} Nc6 {[%emt 0:00:03]} 5. Qd3 {[%emt 0:00:08]} Bc5 {[%emt 0:00:04]} 6. Bf4 {[%emt 0:00:38]} d6 {[%emt 0:00:16]} 7. Qd2 {[%emt 0:00:06]} Bb4 {[%emt 0:10:49]} 8. f3 {[%emt 0:13:52]} Be6 {[%emt 0:01:44]} 9. a3 {[%emt 0:05:01]} Ba5 {[%emt 0:00:16]} 10. O-O-O {[%emt 0:03:48]} Nd7 {[%emt 0:05:39]} 11. Nge2 {[%emt 0:15:14]} Nde5 {[%emt 0:00:25]} 12. Nd4 {[%emt 0:03:31]} O-O {[%emt 0:06:20]} 13. Nb3 {[%emt 0:16:09]} Bb6 {[%emt 0:00:15]} 14. Nd5 {[%emt 0:00:50]} Ng6 {[%emt 0:03:55]} 15. Bg3 {[%emt 0:00:50]} Nge7 {[%emt 0:13:14]} 16. Nxb6 {[%emt 0:04:57]} axb6 {[%emt 0:00:04]} 17. Qc3 {[%emt 0:03:45]} f5 {[%emt 0:00:29]} 18. Bb5 {[%emt 0:03:32]} fxe4 {[%emt 0:02:01]} 19. fxe4 {[%emt 0:00:05]} Kh8 {[%emt 0:00:27]} 20. Rhe1 {[%emt 0:05:22]} Bg8 {[%emt 0:08:08]} 21. Kb1 {[%emt 0:00:20]} Qc8 {[%emt 0:01:00]} 22. e5 {[%emt 0:04:49]} Nd5 {[%emt 0:00:52]} 23. Qd2 {[%emt 0:01:25]} Nxe5 {[%emt 0:00:57]} 24. Bxe5 {[%emt 0:00:16]} dxe5 {[%emt 0:00:04]} 25. Rxe5 {[%emt 0:00:05]} Rd8 {[%emt 0:03:59]} 26. Be2 {[%emt 0:01:33]} c6 {[%emt 0:00:47]} 27. Qg5 {[%emt 0:01:41]} Qc7 {[%emt 0:00:06]} 28. Qg3 {[%emt 0:02:37]} Nf6 {[%emt 0:06:22]} 29. Rxd8 {[%emt 0:02:11]} Rxd8 {[%emt 0:00:04]} 30. Re3 {[%emt 0:00:17]} Qf7 {[%emt 0:00:28]} 31. Bf3 {[%emt 0:01:28]} b5 {[%emt 0:00:51]} 32. Qe1 {[%emt 0:00:54]} Rd7 {[%emt 0:01:37]} 33. Re5 {[%emt 0:00:39]} h6 {[%emt 0:00:46]} 34. Qe2 {[%emt 0:00:16]} Rc7 {[%emt 0:01:49]} 35. h4 {[%emt 0:00:52]} Qg6 {[%emt 0:00:24]} 36. Nc1 {[%emt 0:00:41]} Qg3 {[%emt 0:00:13]} 37. h5 {[%emt 0:00:30]} Qh2 {[%emt 0:04:28]} 38. g4 {[%emt 0:02:32]} Qxe2 {[%emt 0:02:40]} 39. Nxe2 {[%emt 0:00:05]} Bf7 {[%emt 0:00:04]} 40. Kc1 {[%emt 0:02:37]} Rd7 {[%emt 0:02:33]} 41. g5 {[%emt 0:03:09]} hxg5 {[%emt 0:00:05]} 42. Rxg5 {[%emt 0:00:04]} Kh7 {[%emt 0:00:19]} 43. Ng3 {[%emt 0:01:29]} Be6 {[%emt 0:02:07]} 44. b3 {[%emt 0:01:44]} Kh8 {[%emt 0:04:54]} 45. h6 {[%emt 0:00:35]} gxh6 {[%emt 0:01:20]} 46. Rg6 {[%emt 0:00:03]} Rf7 {[%emt 0:00:03]} 47. Rxh6+ {[%emt 0:00:03]} Kg7 {[%emt 0:00:08]} 48. Rh1 {[%emt 0:00:28]} 1/2-1/2

[Event "10th Iberoamericano-ch 2024"]
[Site "Linares"]
[Date "2024.09.27"]
[Round "5.8"]
[White "Gines Esteo, Pedro Antonio"]
[Black "Cesar Maestre, Bernardo"]
[Result "1/2-1/2"]
[ECO "A06"]
[WhiteElo "2477"]
[BlackElo "2369"]
[Annotator "ChessBase"]
[PlyCount "62"]
[EventDate "2024.09.25"]
[EventType "swiss"]
[EventCountry "ESP"]
[SourceTitle "playchess.com"]
[Source "ChessBase"]
[SourceQuality "1"]
[TimeControl "5400+30"]

1. Nf3 {[%emt 0:06:49]} d5 {[%emt 0:00:03]} 2. e3 {[%emt 0:00:36]} Nf6 {[%emt 0:00:10]} 3. c4 {[%emt 0:00:06]} e6 {[%emt 0:00:10]} 4. Nc3 {[%emt 0:04:44]} Bd6 {[%emt 0:00:11]} 5. b3 {[%emt 0:00:25]} O-O {[%emt 0:00:16]} 6. Bb2 {[%emt 0:00:06]} Re8 {[%emt 0:00:08]} 7. Nb5 {[%emt 0:01:51]} Be7 {[%emt 0:00:12]} 8. Be5 {[%emt 0:00:20]} Na6 {[%emt 0:00:08]} 9. Be2 {[%emt 0:01:26]} c6 {[%emt 0:00:17]} 10. Nc3 {[%emt 0:00:13]} Nc5 {[%emt 0:14:52]} 11. O-O {[%emt 0:03:44]} Ncd7 {[%emt 0:01:29]} 12. Bg3 {[%emt 0:00:18]} Nh5 {[%emt 0:01:23]} 13. d4 {[%emt 0:00:16]} Nxg3 {[%emt 0:01:02]} 14. hxg3 {[%emt 0:00:02]} a6 {[%emt 0:16:07]} 15. Qc2 {[%emt 0:04:34]} b5 {[%emt 0:07:01]} 16. e4 {[%emt 0:17:42]} dxc4 {[%emt 0:05:55]} 17. bxc4 {[%emt 0:00:06]} b4 {[%emt 0:00:08]} 18. Na4 {[%emt 0:00:05]} c5 {[%emt 0:00:08]} 19. e5 {[%emt 0:20:48]} cxd4 {[%emt 0:07:35]} 20. Bd3 {[%emt 0:03:09]} g6 {[%emt 0:01:45]} 21. Be4 {[%emt 0:10:49]} Ra7 {[%emt 0:01:38]} 22. Rad1 {[%emt 0:02:59]} Qc7 {[%emt 0:07:25]} 23. Rfe1 {[%emt 0:01:59]} Bb7 {[%emt 0:01:41]} 24. Bxb7 {[%emt 0:09:02]} Rxb7 {[%emt 0:00:30]} 25. Rxd4 {[%emt 0:00:08]} Rc8 {[%emt 0:02:06]} 26. Qd2 {[%emt 0:02:18]} Nb6 {[%emt 0:01:41]} 27. Nxb6 {[%emt 0:01:02]} Qxb6 {[%emt 0:00:15]} 28. Qh6 {[%emt 0:00:48]} Bf8 {[%emt 0:01:12]} 29. Qh3 {[%emt 0:01:38]} Be7 {[%emt 0:07:37]} 30. Qh6 {[%emt 0:00:40]} Bf8 {[%emt 0:00:05]} 31. Qh3 {[%emt 0:00:04]} Be7 {[%emt 0:00:04]} 1/2-1/2